Cogmind - Beta 10.2 @@@ ROGUE MODE // 2021.04.08 @ 16:56:52 Player: ChromeKnight Result: Destroyed by G-47 Trooper with Particle Gun Performance ------------- Evolutions (1) 500 Regions Visited (6) 1200 Robots Destroyed (22) 110 Value Destroyed (391) 391 Prototype IDs (23) 460 Alien Tech Used (0) 0 Bonus (300) 300 TOTAL SCORE: 2961 Bonus ------- Aligned with FarCom 300 Cogmind --------- Core Integrity 0/400 Matter 297/300 Energy 98/100 System Corruption 0% Temperature Cool (9) Movement Core (100) Ox1 Location -8/Mines Parts ------- > --- POWER (1) -------- (None) > --- PROPULSION (3) --- (None) > --- UTILITY (3) ------ Lightpack 2.0 Target Analyzer > --- WEAPON (2) ------- (None) > --- INVENTORY (24) --- High-capacity Matter Pod (200) Faulty Experimental Sensor Array Modified TNC Propulsion Shielding Propulsion Shielding Trap Reconfigurator Great Maul Peak State ------------ > --- POWER ------------ Light Ion Engine > --- PROPULSION ------- Improved Aluminum Leg Carbon-fiber Leg Carbon-fiber Leg > --- UTILITY ---------- Lightpack 2.0 Target Analyzer > --- WEAPON ----------- Heavy Flail Great Maul > --- INVENTORY -------- Hover Unit Hover Unit High-capacity Matter Pod Experimental Sensor Array Modified TNC Propulsion Shielding Propulsion Shielding Trap Reconfigurator [Rating: 40] Favorites ----------- Power Light Ion Engine Engine Light Ion Engine Propulsion Carbon-fiber Leg Leg Carbon-fiber Leg Wheel Wheel Hover Unit Hover Unit Utility Small Storage Unit Storage Small Storage Unit Processor Target Analyzer Protection Light Armor Plating Weapon Heavy Flail Energy Gun Medium Laser Ballistic Gun Light Assault Rifle Impact Weapon Heavy Flail Slashing Weapon Scythe Build | -11 -10 -10 -9 -9 -9 -8 ------- Run | Scr Mat Min Mat Min Exi Min Slots Evolved 2 | . . . 2 . . . Power . | . . . . . . . Propulsion 1 | . . . 1 . . . Utility 1 | . . . 1 . . . Weapon . | . . . . . . . Parts Attached 28 | 6 1 9 4 3 2 3 Power 5 | 1 . 2 . 2 . . Engine 5 | 1 . 2 . 2 . . Core . | . . . . . . . Reactor . | . . . . . . . Propulsion 11 | 2 . 3 2 1 . 3 Treads . | . . . . . . . Leg 8 | 2 . 3 2 1 . . Wheel 1 | . . . . . . 1 Hover 2 | . . . . . . 2 Flight . | . . . . . . . Utility 6 | 1 1 1 2 . 1 . Device . | . . . . . . . Storage 2 | 1 . . . . 1 . Processor 1 | . . . 1 . . . Hackware . | . . . . . . . Protection 3 | . 1 1 1 . . . Artifact . | . . . . . . . Weapon 6 | 2 . 3 . . 1 . Energy Gun 1 | 1 . . . . . . Energy Cannon . | . . . . . . . Ballistic Gun 2 | 1 . 1 . . . . Ballistic Cannon . | . . . . . . . Launcher . | . . . . . . . Special Weapon . | . . . . . . . Impact Weapon 2 | . . 1 . . 1 . Slashing Weapon 1 | . . 1 . . . . Piercing Weapon . | . . . . . . . Special Melee Weapon . | . . . . . . . Unidentified Prototypes . | . . . . . . . Parts Lost 10 | . . . 1 2 . 7 Power 2 | . . . . 1 . 1 Propulsion 5 | . . . . . . 5 Utility 1 | . . . 1 . . . Weapon 2 | . . . . 1 . 1 Highest Loss Streak 4 | . . . 1 1 . 4 Average Slot Usage (%) 87 | . 99 99 95 98 94 49 Engine 9 | . 14 14 11 10 11 . Leg 26 | . 28 28 31 33 33 8 Storage 12 | . 14 14 11 11 11 11 Processor 6 | . . . 8 11 11 11 Protection 9 | . 13 14 10 11 5 . Energy Gun 1 | . 14 . . . . . Ballistic Gun 3 | . 14 7 . . . . Impact Weapon 11 | . . 9 11 11 22 12 Slashing Weapon 5 | . . 9 11 9 . . Naked Turns . | . . . . . . . Heaviest Build 21 | 10 13 21 21 19 15 15 Greatest Support 45 | 20 20 30 45 45 43 43 Greatest Overweight (x) 1 | 1 . 1 . . . 1 Average Overweight (x) . | . . . . . . . Largest Inventory Capacity 24 | 6 6 6 6 6 24 24 Average Capacity 10 | 5 6 6 6 6 14 24 Most Carried 8 | 1 6 6 6 6 8 8 Average Carried 6 | . 4 5 5 6 6 7 Final Capacity 24 | 6 6 6 6 6 24 24 Final Carried 8 | 1 6 6 6 6 8 7 Class Distribution -------------------- 74% | Mutant 25% | Hauler-Mutant Dominant Class ---------------- Mutant | -10/Materials Mutant | -10/Mines Mutant | -9/Materials Mutant | -9/Mines Mutant | -9/Exiles Hauler-Mutant | -8/Mines Resources | -11 -10 -10 -9 -9 -9 -8 ----------- Run | Scr Mat Min Mat Min Exi Min Matter Collected 470 | 260 11 124 35 30 . 10 Remotely . | . . . . . . . Salvage Created 657 | . 16 101 187 58 . 295 Parts 36 | . 4 9 12 10 . 1 Haulers Intercepted . | . . . . . . . Recyclers Shooed . | . . . . . . . Parts Field Recycled . | . . . . . . . Retrieved Matter . | . . . . . . . Parts Self-Destructed . | . . . . . . . Prevented . | . . . . . . . Kills | -11 -10 -10 -9 -9 -9 -8 ------- Run | Scr Mat Min Mat Min Exi Min Combat Hostiles Destroyed 18 | . . 4 8 4 . 2 Melee 13 | . . 1 8 4 . . Guns 3 | . . 3 . . . . Classes Destroyed 7 | . 1 2 1 . . 3 Tunneler 1 | . . . . . . 1 Recycler 2 | . . . . . . 2 Watcher 1 | . 1 . . . . . Swarmer 13 | . . 3 6 4 . . Grunt 2 | . . . 1 . . 1 Sentry 2 | . . 1 1 . . . Hunter 1 | . . . . . . 1 Best Kill Streak 4 | . 1 3 4 4 . 2 Combat Bots Only 4 | . . 3 4 4 . 1 Max Kills in Single Turn 2 | . 1 2 1 1 . 1 Gunslinging 1 | . . 1 . . . . Exploded . | . . . . . . . Melee 1 | . . 1 1 1 . . Uniques/NPCs Destroyed . | . . . . . . . Combat | -11 -10 -10 -9 -9 -9 -8 -------- Run | Scr Mat Min Mat Min Exi Min Damage Taken 1706 | . . 150 540 273 . 743 Core 455 | . . 39 137 52 . 227 Absorbed by Shields . | . . . . . . . Core Remaining (%) 92 | 100 . 84 . . . . Volleys Fired 5 | . 1 4 . . . . Largest 2 | . 2 2 . . . . Hottest 70 | . 70 70 . . . . Shots Fired 10 | . 2 8 . . . . Gun 10 | . 2 8 . . . . Cannon . | . . . . . . . Launcher . | . . . . . . . Special . | . . . . . . . Kinetic 5 | . 1 4 . . . . Thermal 5 | . 1 4 . . . . Explosive . | . . . . . . . Electromagnetic . | . . . . . . . Robot Hit Streak 2 | . 1 2 . . . . Robot Miss Streak 2 | . . 2 . . . . Penetration Max . | . . . . . . . Secondary Targets 1 | . . 1 . . . . Max Gunslinging Chain 1 | . . 1 . . . . Shots Hit Robots 66 | . 1 6 27 4 . 28 Core Hits 21 | . 1 4 8 4 . 4 Critical Hits 3 | . . . 2 1 . . Critical Kills 2 | . . . 1 1 . . Critical Parts Destroyed 1 | . . . 1 . . . Melee Attacks 89 | . . 5 44 9 . 31 Impact 37 | . . 1 4 1 . 31 Slashing 52 | . . 4 40 8 . . Piercing . | . . . . . . . Sneak Attacks 4 | . . . . . . 4 Combat Hostiles . | . . . . . . . Follow-up Attacks 6 | . . 1 3 . . 2 Damage Inflicted 2039 | . 13 123 813 119 . 971 Guns 46 | . 13 33 . . . . Cannons . | . . . . . . . Explosions . | . . . . . . . Melee 1986 | . . 90 813 119 . 964 Ramming 7 | . . . . . . 7 Kinetic 8 | . . 8 . . . . Thermal 38 | . 13 25 . . . . Explosive . | . . . . . . . Electromagnetic . | . . . . . . . Impact 1050 | . . . 86 . . 964 Slashing 936 | . . 90 727 119 . . Piercing . | . . . . . . . Highest Corruption . | . . . . . . . Average Corruption . | . . . . . . . Corruption Purged . | . . . . . . . Overload Shots . | . . . . . . . Overflow Damage 239 | . . 2 44 . . 193 Projectiles . | . . . . . . . Explosions . | . . . . . . . Melee 239 | . . 2 44 . . 193 Knockbacks 3 | . . . . . . 3 Impact 3 | . . . . . . 3 Kinetic . | . . . . . . . Secondary . | . . . . . . . Self-Inflicted Damage 3 | . . . . . . 3 Shots . | . . . . . . . Rammed 2 | . . . . . . 2 Targets Rammed 2 | . . . . . . 2 Kicked . | . . . . . . . Crushed . | . . . . . . . Highest Temperature 93 | . 36 93 . . . . Average Temperature 41 | . 19 46 . . . . Received Heat Transfer 297 | . . 27 99 . . 171 Siege Activations . | . . . . . . . Robots Corrupted . | . . . . . . . Combat Hostiles . | . . . . . . . Parts Fried 5 | . . . . . . 5 Impact Corruptions 10 | . . . 1 . . 9 Robots Melted . | . . . . . . . Combat Hostiles . | . . . . . . . Parts Melted . | . . . . . . . Heat Transferred 111 | . 37 74 . . . . Parts Sabotaged . | . . . . . . . Parts Stolen . | . . . . . . . Parts Stripped . | . . . . . . . Power Chain Reactions . | . . . . . . . Missiles Intercepted . | . . . . . . . Alert | -11 -10 -10 -9 -9 -9 -8 ------- Run | Scr Mat Min Mat Min Exi Min Peak Influence 345 | . 11 94 345 244 . 150 Initial 134 | . . 4 . 134 . . Average 83 | . 5 58 116 233 . 52 Maximum Alert Level 1 | . . . 1 1 . . Low Security (%) 83 | 100 100 100 74 8 . 100 Level 1 16 | . . . 25 91 . . Level 2 . | . . . . . . . Level 3 . | . . . . . . . Level 4 . | . . . . . . . Level 5 . | . . . . . . . High Security . | . . . . . . . Max Security . | . . . . . . . Squads Dispatched 2 | . . 1 1 . . . Investigation 1 | . . 1 . . . . Extermination . | . . . . . . . Reinforcement 1 | . . . 1 . . . Assault . | . . . . . . . Garrison . | . . . . . . . Intercept . | . . . . . . . Construction Impeded . | . . . . . . . Haulers Reinforced . | . . . . . . . Stealth | -11 -10 -10 -9 -9 -9 -8 --------- Run | Scr Mat Min Mat Min Exi Min Distress Signals 2 | . . . 1 1 . . Communications Jammed . | . . . . . . . Distress Signals . | . . . . . . . Times Spotted 47 | . 1 5 21 7 . 13 Peak Tracking Total 6 | . 1 3 6 4 . 6 Tactical Retreats 9 | . . . 5 1 . 3 Traps | -11 -10 -10 -9 -9 -9 -8 ------- Run | Scr Mat Min Mat Min Exi Min Traps Triggered . | . . . . . . . Indirectly . | . . . . . . . Trap Hack Attempts . | . . . . . . . Triggered . | . . . . . . . Disarmed . | . . . . . . . Reprogrammed . | . . . . . . . Reused . | . . . . . . . Traps Extracted . | . . . . . . . Installed . | . . . . . . . Triggered . | . . . . . . . Machines | -11 -10 -10 -9 -9 -9 -8 ---------- Run | Scr Mat Min Mat Min Exi Min Machines Disabled . | . . . . . . . Max in Single Turn . | . . . . . . . Machines Sabotaged . | . . . . . . . Garrisons Compromised . | . . . . . . . Overloaded Fab Kills . | . . . . . . . Fab Network Shutdowns . | . . . . . . . Hacking | -11 -10 -10 -9 -9 -9 -8 --------- Run | Scr Mat Min Mat Min Exi Min Machines Accessed 3 | . 1 1 . . 1 . Terminals 1 | . 1 . . . . . Fabricators . | . . . . . . . Repair Stations . | . . . . . . . Recycling Units . | . . . . . . . Scanalyzers . | . . . . . . . Garrison Access . | . . . . . . . Total Hacks 4 | . 2 1 . . 1 . Successful 4 | . 2 1 . . 1 . Failed . | . . . . . . . Catastrophic . | . . . . . . . Database Lockouts . | . . . . . . . Manual 1 | . . . . . 1 . Terminals 2 | . 2 . . . . . Fabricators . | . . . . . . . Repair Stations . | . . . . . . . Recycling Units . | . . . . . . . Scanalyzers . | . . . . . . . Garrison Access . | . . . . . . . Terminal Hacks 4 | . 2 1 . . 1 . Open Door 1 | . . 1 . . . . Alert Level 1 | . 1 . . . . . Dispatch Records 1 | . 1 . . . . . EX-Prototype ID Bank 1 | . . . . . 1 . Fabricator Hacks . | . . . . . . . Repair Station Hacks . | . . . . . . . Recycling Unit Hacks . | . . . . . . . Scanalyzer . | . . . . . . . Garrison Access Hacks . | . . . . . . . Unauthorized Hacks . | . . . . . . . Terminals . | . . . . . . . Fabricators . | . . . . . . . Repair Stations . | . . . . . . . Recycling Units . | . . . . . . . Scanalyzers . | . . . . . . . Garrison Access . | . . . . . . . Data Cores Recovered . | . . . . . . . Used . | . . . . . . . Hacking Detections . | . . . . . . . Full Trace Events . | . . . . . . . Feedback Events . | . . . . . . . Feedback Blocked . | . . . . . . . Robot Schematics Acquired . | . . . . . . . Robots Built . | . . . . . . . Matter . | . . . . . . . Time . | . . . . . . . Total Robot Build Rating . | . . . . . . . Part Schematics Acquired . | . . . . . . . Parts Built . | . . . . . . . Matter . | . . . . . . . Time . | . . . . . . . Total Part Build Rating . | . . . . . . . Parts Repaired . | . . . . . . . Time . | . . . . . . . Parts Recycled . | . . . . . . . Recycled Matter . | . . . . . . . Retrieved Matter . | . . . . . . . Retrieved Components . | . . . . . . . Parts Scanalyzed . | . . . . . . . Part Schematics Acquired . | . . . . . . . Parts Damaged . | . . . . . . . Bothacking | -11 -10 -10 -9 -9 -9 -8 ------------ Run | Scr Mat Min Mat Min Exi Min Used RIF Installer . | . . . . . . . Robots Hacked . | . . . . . . . Non-combat . | . . . . . . . Combat . | . . . . . . . Robot Hacks Applied . | . . . . . . . Relay Couplers Released . | . . . . . . . Robots Rewired . | . . . . . . . Allies Hacked . | . . . . . . . Hacks Repelled . | . . . . . . . Allies | -11 -10 -10 -9 -9 -9 -8 -------- Run | Scr Mat Min Mat Min Exi Min Total Allies . | . . . . . . . Largest Group . | . . . . . . . Highest-Rated Group . | . . . . . . . Highest-Rated Ally . | . . . . . . . Total Orders . | . . . . . . . Ally Attacks . | . . . . . . . Total Damage . | . . . . . . . Kills . | . . . . . . . Allies Corrupted . | . . . . . . . Allies Melted . | . . . . . . . Intel | -11 -10 -10 -9 -9 -9 -8 ------- Run | Scr Mat Min Mat Min Exi Min Robot Analysis Total . | . . . . . . . Derelict Logs Recovered 1 | . . . . 1 . . Drone Launches . | . . . . . . . Drone Recoveries . | . . . . . . . Exploration | -11 -10 -10 -9 -9 -9 -8 ------------- Run | Scr Mat Min Mat Min Exi Min Turns Passed 1992 | 61 167 548 345 214 274 383 Spaces Moved 1426 | 47 132 404 173 156 223 291 Core 12 | 12 . . . . . . Treads . | . . . . . . . Legs 1229 | 35 132 404 173 156 223 106 Wheels 153 | . . . . . . 153 Hover 32 | . . . . . . 32 Flight . | . . . . . . . Fastest Speed 50 | 50 120 120 120 120 120 56 Average Speed 115 | 108 120 123 120 120 120 96 Slowest Speed 150 | 120 120 150 120 120 120 120 Overloaded Moves . | . . . . . . . Propulsion Burnouts . | . . . . . . . Robots Hopped . | . . . . . . . Cave-ins Triggered . | . . . . . . . Exploration Rate (%) 39 | 3 24 86 23 20 60 62 Regions Visited 6 Branch Regions 4 Pre-discovered Areas . | . . . . . . . Known Exits Taken . | . . . . . . . Unknown Exits Taken 6 | 1 1 1 1 1 1 . Scrap Searched 5 | . . 2 . 2 . 1 Spaces Dug . | . . . . . . . Terrain Destroyed . | . . . . . . . Melee . | . . . . . . . Projectile . | . . . . . . . AOE . | . . . . . . . Terrain Rammed . | . . . . . . . Walls Destroyed . | . . . . . . . Machines Disabled . | . . . . . . . Actions | -11 -10 -10 -9 -9 -9 -8 --------- Run | Scr Mat Min Mat Min Exi Min Total 1620 | 54 138 444 248 170 230 336 Wait 42 | 1 . 5 26 1 . 9 Move 1420 | 46 131 403 172 155 222 291 Hop . | . . . . . . . Pick Up 20 | 1 5 5 4 1 4 . Fast Attach 14 | 6 1 3 1 1 1 1 Attach 5 | . . . 2 . 1 2 Detach 1 | . . . . . . 1 Swap 9 | . . 6 1 2 . . Drop 21 | . . 14 2 2 2 1 Fire 5 | . 1 4 . . . . Melee 81 | . . 4 40 8 . 29 Ram 2 | . . . . . . 2 Kick . | . . . . . . . Crush . | . . . . . . . Escape Stasis . | . . . . . . . Rewire . | . . . . . . . Trap . | . . . . . . . Miscellaneous . | . . . . . . . Route ------- -11/Scrapyard -10/Materials -10/Mines (discovered 2 exits: [*Mat x2]) -9/Materials -9/Mines -9/Exiles -8/Mines (discovered 1 exit: [*Mat]) History --------- Turn | Location | Event 12 | -11/Scrapyard | Discovered new exit (range 16) 62 | -11/Scrapyard | Entered Materials 209 | -10/Materials | Discovered new exit (range 11) 229 | -10/Materials | Entered Mines 312 | -10/Mines | Build established: Mutant 371 | -10/Mines | Met a Derelict shopkeep closing up shop 441 | -10/Mines | Joined a pair of Derelicts in attacking an 0b10 outpost 695 | -10/Mines | Discovered new exit (range 16) 741 | -10/Mines | Discovered new exit (range 8) 777 | -10/Mines | Entered Materials 777 | -9/Materials | Evolved 2 slots: Propulsion x1, Utility x1 1062 | -9/Materials | Discovered new exit (range 12) 1122 | -9/Materials | Entered Mines 1129 | -9/Mines | Met a Derelict bent on vengeance 1171 | -9/Mines | Found a damaged Exp. Sensor Array with a note attached 1175 | -9/Mines | Found Prototype Device 1185 | -9/Mines | Learned location of 1 exit from Materials 1215 | -9/Mines | Deemed a non-threat by the Exiles lab entrance 1216 | -9/Mines | Discovered new exit (range 5) 1234 | -9/Mines | Assembled infested the area 1336 | -9/Mines | Entered Exiles 1367 | -9/Exiles | Met 8R-AWN 1387 | -9/Exiles | Met EX-HEX 1419 | -9/Exiles | Met EX-BIN 1433 | -9/Exiles | Aligned with FarCom system 1435 | -9/Exiles | Given EX-Vault access code 1469 | -9/Exiles | Opened EX-Vault 1478 | -9/Exiles | Found Lightpack 2.0 1487 | -9/Exiles | Found Modified TNC 1491 | -9/Exiles | Found Trap Reconfigurator 1518 | -9/Exiles | Warned to stay clear of 0b10 Research branches 1558 | -9/Exiles | Met EX-DEC 1597 | -9/Exiles | Discovered new exit (range 14) 1610 | -9/Exiles | Stole three prototypes: Lightpack 2.0, Modified TNC, Trap Reconfigurator 1610 | -9/Exiles | Entered Mines 1619 | -8/Mines | Core integrity fell below 50% 1685 | -8/Mines | Lost 4 parts (1p2n1w) 1697 | -8/Mines | Discovered new exit (range 7) 1784 | -8/Mines | Build established: Hauler-Mutant 1868 | -8/Mines | Core integrity fell below 20% 1993 | -8/Mines | Destroyed by G-47 Trooper with Particle Gun Last Messages --------------- 01863_ Carbon-fiber Leg destroyed. 01871_ Destroyed Imp. Heat Sink. 01871_ G-47 Trooper system corrupted by crushing effect. 01871_ G-47 Trooper misfires. 01872_ G-47 Trooper system terminally corrupted. 01903_ K-01 Serf collects debris. 01938_ Sneak attack on R-06 Scavenger. 01938_ Destroyed Com. Wheel. 01938_ Destroyed Tractor Beam. 01938_ Destroyed Com. Wheel. 01938_ R-06 Scavenger system corrupted by crushing effect. 01938_ R-06 Scavenger knocked back. 01939_ R-06 Scavenger system terminally corrupted. 01939_ Lgt. Ion Engine fried. 01958_ Dropped Wheel. 01966_ Hover Unit destroyed. 01973_ U-05 Engineer builds a Door. 01992_ Slammed into G-47 Trooper. 01992_ Hover Unit destroyed. 01993_ Slammed into G-47 Trooper. Map ----- +----------------------------------------------------+ | | | ?????????????????????????????????????????????????? | | ?????????????????????????????????????????????????? | | ?????????????????????????????????????????????????? | | ???????????????????????????????############??????? | | ????????????####???????????????# #??????? | | ????????????# ##??????????????# """ """ #??????? | | ????????????# #??????????????# """ """ #??????? | | ????????????# #??????????????# """ """ #??????? | | ???????????## #???############ #??????? | | ######## ##??# """ """ #??????? | | #??# ########## """ """ #??????? | | ### #### #????????# """ """ #??????? | | ??########## #????????# #??????? | | ???????????## ### #????????# #??????# | | ????????????## ##?# #???####?###### ######??? # | | ?????????????### #### #??## #??????# ### ## # | | ???????????????# #?## #??????# ## # | | ???????????????# ######## #??????# #? | | ???????????????# #???# #????#### ### #?? | | ???????????????# #???# #????# % #?### ##?? | | ???????????????# #???# ##???# =###????## #??? | | ???????????????# #???## #?### #?###?????#??? | | ???????????????# #????##g #?# # ##???????? | | ???????????????# #?????## g ##?# #### ???? | | ???????????????# #??????#@g##??# #??? | | ?????????????### #??????#gg#??## #####??? | | ?????????????# #??????# #### ##??????? | | ?????????????# ##??????#t g #####???????? | | ??????????#### #???????# u#### ##???????????? | | ?????????## #???????# ##?## ##????????????? | | ?????????# ##?????# #??#####?????????????? | | ?????##### ####??# #????????????????????? | | ?????# ## #????????????????????? | | ?????# #????????????????????? | | ?????#!%### ##????????????????????? | | ?????# %#?### ## #?????????????????????? | | ###### #???# #?## ##????????????????????? | | ##### #???## ! ##???? ##????????????? | | ###### % #????## !### #????????????? | | ?????# ## ## #?????## %#????????????? | | ?????# ## ## #???????# ????????????????? | | ?????# ## ## #??????## ????????????????????? | | ????? ## ## #??????# #???????????????????????? | | ???? ## ## #??????# ##???????????????????????? | | ???####### ## #?????## #####????????????????????? | | ?????????# ## ####### % #????????????????????? | | ????????## ## #????????????????????? | | ???????## ######### ### #??????#####?????????? | | ???????# ##?????## ##?# #?????## ##????????? | +----------------------------------------------------+ Best States ------------- Heat Dissipation 28 Energy Generation 14 Energy Capacity 275 Matter Stores 300 Matter Capacity 300 Sight Range 16 Terrain Scan Density 10 Armor Coverage 150 Propulsion Shielding 33 Evasion (%) 44 Target Analysis 5 Item Schematics ----------------- None Robot Schematics ------------------ None Fabricated ------------ Nothing Alien Tech Used ----------------- None Achievements -------------- None Challenges ------------ None Game ------ Seed AccelerationDisposableFlamer Manual? 0 Play Time 00:15:23 Cumulative 131.1 hours Start 2021.04.08 @ 16:41:42 End 2021.04.08 @ 16:56:52 Sessions 1 Manual Loads 0 Difficulty Rogue Special Mode None Game No. 299 Rogue 146 Adventurer 148 Explorer 5 Win Type - Total 3 Types 3/0/0/0/0/0/0/0/0 Lore% 65 Gallery% 73 Achievement% 57 Wizard Run 0 Options --------- ASCII 0 Keyboard 0 Movement Numpad Keybinds 0 Fullscreen 1 Font 14/X11 Map View 84x54 Tactical HUD 1 Map Filters NONE Filters NONE Steam 1 RUN: 92f24043-46f6-4068-b6a2-0c634a844152